Workbook

Sheet Wirtschaftlichkeitslücke
A1: Angaben zur Wirtschaftlichkeitslücke (Version vom 29.02.2016)
A3: TK-Anbieter
A4: Landkreis
A5: Ausbaugebiet
A7: verwendete Technologien zur Backbone-Anbindung
A8: verwendete Technologien zur Anbindung der Haushalte
A10: Netzaufbau | B10: vor Inbetrieb-nahme | C10: Einheiten | D10: Abweichung von ø-Kosten | E10: Bitte füllen Sie alle für Ihr Projekt relevanten Daten in die grün gefärbten Felder ein. Einnahmen wie Ausgaben sind immer als positiver Wert einzugeben. Wird nach der Eingabe der Hardware im Bereich Netzaufbau eines oder mehrere Felder in der Spalte Abweichung von ø-Kosten rot, ist zusätzlich eine schriftliche Erklärung für die Abweichung abzugeben. Bitte füllen Sie auch das Tabellenblatt "Einnahmen und Ausgaben" aus.
A11: Tiefbauarbeiten | B11: Summe | C11: Meter / Anzahl | D11: Kosten / Einheit | L11: ø-Kosten | M11: ø-Kosten - 15% | N11: ø-Kosten + 15%
A12: Unversiegelt | B12: 0 | C12: 0 | D12: =IF(B12=0,0)+IF(C12>0,B12/C12) -> 0 | K12: ø-Kosten Tiefbau unversiegelt [€/m] | L12: 25.31 | M12: =L12*0.85 -> 21.5135 | N12: =L12*1.15 -> 29.1065
A13: Versiegelt | B13: 0 | C13: 0 | D13: =IF(B13=0,0)+IF(C13>0,B13/C13) -> 0 | K13: ø-Kosten Tiefbau versiegelt [€/m] | L13: 79.77 | M13: =L13*0.85 -> 67.8045 | N13: =L13*1.15 -> 91.7355
A14: Sonstige Tiefbaukosten | B14: 0
A15: Passive Infrastruktur
A16: Oberirdische Leitungsverläufe | B16: 0 | C16: 0 | D16: =IF(B16=0,0)+IF(C16>0,B16/C16) -> 0
A17: Leerrohr | B17: 0 | C17: 0 | D17: =IF(B17=0,0)+IF(C17>0,B17/C17) -> 0 | K17: ø-Kosten Leerrohre [€/m] | L17: 6 | M17: =L17*0.85 -> 5.1 | N17: =L17*1.15 -> 6.9
A18: Masten | B18: 0 | C18: 0 | D18: =IF(B18=0,0)+IF(C18>0,B18/C18) -> 0
A19: Glasfaser | B19: 0 | C19: 0 | D19: =IF(B19=0,0)+IF(C19>0,B19/C19) -> 0 | K19: ø-Kosten Glasfaser [€/m] | L19: 5.53 | M19: =L19*0.85 -> 4.7005 | N19: =L19*1.15 -> 6.3595
A20: Kosten Hausanschlüsse/ Schächte/ Verzweiger/ Splitter/ sonst. Abschlusseinrichtungen | B20: 0 | C20: 0 | D20: =IF(B20=0,0)+IF(C20>0,B20/C20) -> 0
A21: Sonstige Kosten für passive Infrastruktur | B21: 0
A22: Aktive Infrastruktur
A23: DSLAMS | B23: 0 | C23: 0 | D23: =IF(B23=0,0)+IF(C23>0,B23/C23) -> 0 | K23: ø-Kosten DSLAM [€/Stk.] | L23: 18509.46 | M23: =L23*0.85 -> 15733.041 | N23: =L23*1.15 -> 21285.879
A24: Sender/Empfänger Einheit | B24: 0 | C24: 0 | D24: =IF(B24=0,0)+IF(C24>0,B24/C24) -> 0
A25: POP / GPON | B25: 0 | C25: 0 | D25: =IF(B25=0,0)+IF(C25>0,B25/C25) -> 0
A26: Sonstige Kosten für aktive Infrastruktur | B26: 0
A27: Summe Investitionskosten | B27: =SUM(B12:B14,B16:B21,B23:B26) -> 0
A28: darin enthaltene Investitionskosten für die Errichtung der Infrastruktur durch einen Dritten mit anschließender entgeltlicher Nutzungsüberlassung an den Netzbetreiber | B28: 0
A29: verbleiben maximal umlegungsfähig | B29: =B27-B28 -> 0
A30: davon in die Wirtschaftlichkeitslücke umgelegt | B30: =B29 -> 0
A32: Barwert Einnahmen (Übertrag Einnahmen & Ausgaben) | B32: ='Einnahmen und Ausgaben'!B25 -> 0
A33: Barwert Kosten (Übertrag Einnahmen & Ausgaben) | B33: ='Einnahmen und Ausgaben'!B26 -> 0
A36: Wirtschaftlichkeitslücke | B36: =B33-B32 -> 0
A42: In den hellgrau hinterlegten Zellen haben Sie die Möglichkeit eigene Eingaben zu tätigen

Sheet Einnahmen und Ausgaben
A1: Angaben zu Einnahmen und Ausgaben
A3: Kundenzahlen | B3: Ausbaujahr / Jahr 0 | C3: Jahr 1 | D3: Jahr 2 | E3: Jahr 3 | F3: Jahr 4 | G3: Jahr 5 | H3: Jahr 6 | I3: Jahr 7 | J3: Jahr 8 | K3: Jahr 9 | L3: Jahr 10 | M3: Jahr 11 | N3: Jahr 12 | O3: Jahr 13 | P3: Jahr 14 | Q3: Jahr 15 | R3: Jahr 16 | S3: Jahr 17 | T3: Jahr 18 | U3: Jahr 19 | V3: Jahr 20 | W3: Jahr 21 | X3: Jahr 22 | Y3: Jahr 23 | Z3: Jahr 24 | AA3: Jahr 25 | AB3: Jahr 26 | AC3: Jahr 27 | AD3: Jahr 28 | AE3: Jahr 29 | AF3: Jahr 30
A4: Anzahl Bestandskunden | B4: 0 | C4: =B4+B5 -> 0 | D4: =C4+C5 -> 0 | E4: 0 | F4: 0 | G4: 0 | H4: 0 | I4: 0 | J4: 0 | K4: 0 | L4: 0 | M4: 0 | N4: 0 | O4: 0 | P4: 0 | Q4: 0 | R4: 0 | S4: 0 | T4: 0 | U4: 0 | V4: 0 | W4: 0 | X4: 0 | Y4: 0 | Z4: 0 | AA4: 0 | AB4: 0 | AC4: 0 | AD4: 0 | AE4: 0 | AF4: 0
A5: Neukunden im laufenden Jahr | C5: 0 | D5: 0 | E5: 0 | F5: 0 | G5: 0 | H5: 0 | I5: 0 | J5: 0 | K5: 0 | L5: 0 | M5: 0 | N5: 0 | O5: 0 | P5: 0 | Q5: 0 | R5: 0 | S5: 0 | T5: 0 | U5: 0 | V5: 0 | W5: 0 | X5: 0 | Y5: 0 | Z5: 0 | AA5: 0 | AB5: 0 | AC5: 0 | AD5: 0 | AE5: 0 | AF5: 0
A7: Netzbetrieb: Alle Einnahmen im Rahmen der vorbezeichneten Nutzungsverhältnisse: | B7: Ausbaujahr / Jahr 0 | C7: Jahr 1 | D7: Jahr 2 | E7: Jahr 3 | F7: Jahr 4 | G7: Jahr 5 | H7: Jahr 6 | I7: Jahr 7 | J7: Jahr 8 | K7: Jahr 9 | L7: Jahr 10 | M7: Jahr 11 | N7: Jahr 12 | O7: Jahr 13 | P7: Jahr 14 | Q7: Jahr 15 | R7: Jahr 16 | S7: Jahr 17 | T7: Jahr 18 | U7: Jahr 19 | V7: Jahr 20 | W7: Jahr 21 | X7: Jahr 22 | Y7: Jahr 23 | Z7: Jahr 24 | AA7: Jahr 25 | AB7: Jahr 26 | AC7: Jahr 27 | AD7: Jahr 28 | AE7: Jahr 29 | AF7: Jahr 30
A8: Einnahmen durch vorhandene Kunden | C8: 0 | D8: 0 | E8: 0 | F8: 0 | G8: 0 | H8: 0 | I8: 0 | J8: 0 | K8: 0 | L8: 0 | M8: 0 | N8: 0 | O8: 0 | P8: 0 | Q8: 0 | R8: 0 | S8: 0 | T8: 0 | U8: 0 | V8: 0 | W8: 0 | X8: 0 | Y8: 0 | Z8: 0 | AA8: 0 | AB8: 0 | AC8: 0 | AD8: 0 | AE8: 0 | AF8: 0
A9: Einnahmen durch neue Kunden | C9: 0 | D9: 0 | E9: 0 | F9: 0 | G9: 0 | H9: 0 | I9: 0 | J9: 0 | K9: 0 | L9: 0 | M9: 0 | N9: 0 | O9: 0 | P9: 0 | Q9: 0 | R9: 0 | S9: 0 | T9: 0 | U9: 0 | V9: 0 | W9: 0 | X9: 0 | Y9: 0 | Z9: 0 | AA9: 0 | AB9: 0 | AC9: 0 | AD9: 0 | AE9: 0 | AF9: 0
A10: Einnahmen aus der Nutzungsüberlassung an Dritte | C10: 0 | D10: 0 | E10: 0 | F10: 0 | G10: 0 | H10: 0 | I10: 0 | J10: 0 | K10: 0 | L10: 0 | M10: 0 | N10: 0 | O10: 0 | P10: 0 | Q10: 0 | R10: 0 | S10: 0 | T10: 0 | U10: 0 | V10: 0 | W10: 0 | X10: 0 | Y10: 0 | Z10: 0 | AA10: 0 | AB10: 0 | AC10: 0 | AD10: 0 | AE10: 0 | AF10: 0
A11: Erwartete Einnahmen aus Vermarktung von Vorleistungsprodukten | C11: 0 | D11: 0 | E11: 0 | F11: 0 | G11: 0 | H11: 0 | I11: 0 | J11: 0 | K11: 0 | L11: 0 | M11: 0 | N11: 0 | O11: 0 | P11: 0 | Q11: 0 | R11: 0 | S11: 0 | T11: 0 | U11: 0 | V11: 0 | W11: 0 | X11: 0 | Y11: 0 | Z11: 0 | AA11: 0 | AB11: 0 | AC11: 0 | AD11: 0 | AE11: 0 | AF11: 0
A12: Sonstige erwartete Einnahmen im Rahmen des Vorhabens, z.B. Erlöse aus Verkauf im Bereich der errichteten Infrastruktur | C12: 0 | D12: 0 | E12: 0 | F12: 0 | G12: 0 | H12: 0 | I12: 0 | J12: 0 | K12: 0 | L12: 0 | M12: 0 | N12: 0 | O12: 0 | P12: 0 | Q12: 0 | R12: 0 | S12: 0 | T12: 0 | U12: 0 | V12: 0 | W12: 0 | X12: 0 | Y12: 0 | Z12: 0 | AA12: 0 | AB12: 0 | AC12: 0 | AD12: 0 | AE12: 0 | AF12: 0
A13: Summe der Einnahmen | C13: =SUM(C8:C12) -> 0 | D13: =SUM(D8:D12) -> 0 | E13: 0 | F13: 0 | G13: 0 | H13: 0 | I13: 0 | J13: 0 | K13: 0 | L13: 0 | M13: 0 | N13: 0 | O13: 0 | P13: 0 | Q13: 0 | R13: 0 | S13: 0 | T13: 0 | U13: 0 | V13: 0 | W13: 0 | X13: 0 | Y13: 0 | Z13: 0 | AA13: 0 | AB13: 0 | AC13: 0 | AD13: 0 | AE13: 0 | AF13: =SUM(AF8:AF12) -> 0
A15: Netzbetrieb: Kosten | C15: Jahr 1 | D15: Jahr 2 | E15: Jahr 3 | F15: Jahr 4 | G15: Jahr 5 | H15: Jahr 6 | I15: Jahr 7 | J15: Jahr 8 | K15: Jahr 9 | L15: Jahr 10 | M15: Jahr 11 | N15: Jahr 12 | O15: Jahr 13 | P15: Jahr 14 | Q15: Jahr 15 | R15: Jahr 16 | S15: Jahr 17 | T15: Jahr 18 | U15: Jahr 19 | V15: Jahr 20 | W15: Jahr 21 | X15: Jahr 22 | Y15: Jahr 23 | Z15: Jahr 24 | AA15: Jahr 25 | AB15: Jahr 26 | AC15: Jahr 27 | AD15: Jahr 28 | AE15: Jahr 29 | AF15: Jahr 30
A16: Kosten für Vorleistungsprodukte | C16: 0 | D16: 0 | E16: 0 | F16: 0 | G16: 0 | H16: 0 | I16: 0 | J16: 0 | K16: 0 | L16: 0 | M16: 0 | N16: 0 | O16: 0 | P16: 0 | Q16: 0 | R16: 0 | S16: 0 | T16: 0 | U16: 0 | V16: 0 | W16: 0 | X16: 0 | Y16: 0 | Z16: 0 | AA16: 0 | AB16: 0 | AC16: 0 | AD16: 0 | AE16: 0 | AF16: 0
A17: Unmittelbare Betriebskosten der errichteten Infrastruktur | C17: 0 | D17: 0 | E17: 0 | F17: 0 | G17: 0 | H17: 0 | I17: 0 | J17: 0 | K17: 0 | L17: 0 | M17: 0 | N17: 0 | O17: 0 | P17: 0 | Q17: 0 | R17: 0 | S17: 0 | T17: 0 | U17: 0 | V17: 0 | W17: 0 | X17: 0 | Y17: 0 | Z17: 0 | AA17: 0 | AB17: 0 | AC17: 0 | AD17: 0 | AE17: 0 | AF17: 0
A18: Sonstige operative Betriebskosten | C18: 0 | D18: 0 | E18: 0 | F18: 0 | G18: 0 | H18: 0 | I18: 0 | J18: 0 | K18: 0 | L18: 0 | M18: 0 | N18: 0 | O18: 0 | P18: 0 | Q18: 0 | R18: 0 | S18: 0 | T18: 0 | U18: 0 | V18: 0 | W18: 0 | X18: 0 | Y18: 0 | Z18: 0 | AA18: 0 | AB18: 0 | AC18: 0 | AD18: 0 | AE18: 0 | AF18: 0
A19: Finanzierungskosten (ohne Tilgung) | C19: 0 | D19: 0 | E19: 0 | F19: 0 | G19: 0 | H19: 0 | I19: 0 | J19: 0 | K19: 0 | L19: 0 | M19: 0 | N19: 0 | O19: 0 | P19: 0 | Q19: 0 | R19: 0 | S19: 0 | T19: 0 | U19: 0 | V19: 0 | W19: 0 | X19: 0 | Y19: 0 | Z19: 0 | AA19: 0 | AB19: 0 | AC19: 0 | AD19: 0 | AE19: 0 | AF19: 0
A20: Übertrag: in die Wirtschaftlichkeitslücke umgelegte Investitionskosten | C20: =Wirtschaftlichkeitslücke!B30 -> 0
A21: Anteil der Gesamtkosten, der dem Anteil von nicht mit mind. 50 Mbit/s versorgten Haushalten im Planungsgebiet entspricht | C21: 0 | D21: 0 | E21: 0 | F21: 0 | G21: 0 | H21: 0 | I21: 0 | J21: 0 | K21: 0 | L21: 0 | M21: 0 | N21: 0 | O21: 0 | P21: 0 | Q21: 0 | R21: 0 | S21: 0 | T21: 0 | U21: 0 | V21: 0 | W21: 0 | X21: 0 | Y21: 0 | Z21: 0 | AA21: 0 | AB21: 0 | AC21: 0 | AD21: 0 | AE21: 0 | AF21: 0
A22: Summe der zu berücksichtigenden Kosten | C22: =SUM(C16:C20)-C21 -> 0 | D22: =SUM(D16:D19)-D21 -> 0 | E22: =SUM(E16:E19)-E21 -> 0 | F22: 0 | G22: 0 | H22: 0 | I22: 0 | J22: 0 | K22: 0 | L22: 0 | M22: 0 | N22: 0 | O22: 0 | P22: 0 | Q22: 0 | R22: 0 | S22: 0 | T22: 0 | U22: 0 | V22: 0 | W22: 0 | X22: 0 | Y22: 0 | Z22: 0 | AA22: 0 | AB22: 0 | AC22: 0 | AD22: 0 | AE22: 0 | AF22: 0
A23: Abzinsungssatz | C23: 0 | D23: 0 | E23: 0 | F23: 0 | G23: 0 | H23: 0 | I23: 0 | J23: 0 | K23: 0 | L23: 0 | M23: 0 | N23: 0 | O23: 0 | P23: 0 | Q23: 0 | R23: 0 | S23: 0 | T23: 0 | U23: 0 | V23: 0 | W23: 0 | X23: 0 | Y23: 0 | Z23: 0 | AA23: 0 | AB23: 0 | AC23: 0 | AD23: 0 | AE23: 0 | AF23: 0
A24: Barwertfaktor | C24: =1/((1+C23)^C27) -> 1 | D24: =1/((1+D23)^D27) -> 1 | E24: =1/((1+E23)^E27) -> 1 | F24: 1 | G24: 1 | H24: 1 | I24: 1 | J24: 1 | K24: 1 | L24: 1 | M24: 1 | N24: 1 | O24: 1 | P24: 1 | Q24: 1 | R24: 1 | S24: 1 | T24: 1 | U24: 1 | V24: 1 | W24: 1 | X24: 1 | Y24: 1 | Z24: 1 | AA24: 1 | AB24: 1 | AC24: 1 | AD24: 1 | AE24: 1 | AF24: 1
A25: Barwert (Einnahmen) | B25: =SUM(C25:AF25) -> 0 | C25: =C13*C24 -> 0 | D25: 0 | E25: 0 | F25: 0 | G25: 0 | H25: 0 | I25: 0 | J25: 0 | K25: 0 | L25: 0 | M25: 0 | N25: 0 | O25: 0 | P25: 0 | Q25: 0 | R25: 0 | S25: 0 | T25: 0 | U25: 0 | V25: 0 | W25: 0 | X25: 0 | Y25: 0 | Z25: 0 | AA25: 0 | AB25: 0 | AC25: 0 | AD25: 0 | AE25: 0 | AF25: 0
A26: Barwert (Kosten) | B26: =SUM(C26:AF26) -> 0 | C26: =C22*C24 -> 0 | D26: =D22*D24 -> 0 | E26: 0 | F26: 0 | G26: 0 | H26: 0 | I26: 0 | J26: 0 | K26: 0 | L26: 0 | M26: 0 | N26: 0 | O26: 0 | P26: 0 | Q26: 0 | R26: 0 | S26: 0 | T26: 0 | U26: 0 | V26: 0 | W26: 0 | X26: 0 | Y26: 0 | Z26: 0 | AA26: 0 | AB26: 0 | AC26: 0 | AD26: 0 | AE26: 0 | AF26: 0
C27: =IF(C23<>0,B27+1,B27) -> 0 | D27: =IF(D23<>0,C27+1,C27) -> 0 | E27: 0 | F27: 0 | G27: 0 | H27: 0 | I27: 0 | J27: 0 | K27: 0 | L27: 0 | M27: 0 | N27: 0 | O27: 0 | P27: 0 | Q27: 0 | R27: 0 | S27: 0 | T27: 0 | U27: 0 | V27: 0 | W27: 0 | X27: 0 | Y27: 0 | Z27: 0 | AA27: 0 | AB27: 0 | AC27: 0 | AD27: 0 | AE27: 0 | AF27: 0
A28: Summe der Barwerte | B28: =B25-B26 -> 0 | AF28: =AF27 -> 0
A30: In den hellgrau hinterlegten Zellen haben Sie die Möglichkeit eigene Eingaben zu tätigen
